Cogmind - Beta 14 *** ADVENTURER MODE // 2025.03.21 @ 22:51:27 Player: crsstev Result: Destroyed by D-53 Grenadier with Mini Grenade Launcher Performance ------------- Evolutions (0) 0 Regions Visited (2) 400 Robots Destroyed (22) 110 Value Destroyed (396) 396 Prototype IDs (2) 40 Alien Tech Used (0) 0 Bonus (0) 0 TOTAL SCORE: 946 Bonus ------- None Cogmind --------- Core Integrity 0/250 Matter 290/300 Energy 115/125 System Corruption 0% Temperature Cool (12) Movement Walking (120) Location -10/Mines Parts ------- > --- POWER (1) -------- Light Ion Engine > --- PROPULSION (2) --- Carbon-fiber Leg > --- UTILITY (2) ------ Small Storage Unit > --- WEAPON (2) ------- Particle Gun Scythe > --- INVENTORY (8) ---- Aluminum Leg Flight Unit Flight Unit Flight Unit Visual Processing Unit Terrain Scanner Peak State ------------ > --- POWER ------------ Light Ion Engine > --- PROPULSION ------- Aluminum Leg Carbon-fiber Leg > --- UTILITY ---------- Small Storage Unit Structural Scanner > --- WEAPON ----------- Light Assault Rifle Scythe > --- INVENTORY -------- Light Ion Engine Aluminum Leg Visual Processing Unit Terrain Scanner Particle Gun [Rating: 11] Favorites ----------- Power Light Ion Engine Engine Light Ion Engine Propulsion Aluminum Leg Leg Aluminum Leg Wheel Compact Wheel Utility Small Storage Unit Device Structural Scanner Storage Small Storage Unit Weapon EM Pulse Gun Energy Gun EM Pulse Gun Ballistic Gun Assault Rifle Slashing Weapon Scythe Build | -11 -10 -10 ------- Run | Yrd Mat Min Slots Evolved . | . . . Power . | . . . Propulsion . | . . . Utility . | . . . Weapon . | . . . Parts Attached 23 | 6 9 8 Power 4 | 1 1 2 Engine 4 | 1 1 2 Core . | . . . Reactor . | . . . Propulsion 9 | 2 4 3 Treads . | . . . Leg 7 | 2 2 3 Wheel 2 | . 2 . Hover . | . . . Flight . | . . . Utility 3 | 1 2 . Device 2 | . 2 . Storage 1 | 1 . . Processor . | . . . Hackware . | . . . Protection . | . . . Artifact . | . . . Weapon 7 | 2 2 3 Energy Gun 3 | 1 1 1 Energy Cannon . | . . . Ballistic Gun 3 | 1 1 1 Ballistic Cannon . | . . . Launcher . | . . . Special Weapon . | . . . Impact Weapon . | . . . Slashing Weapon 1 | . . 1 Piercing Weapon . | . . . Special Melee Weapon . | . . . Unidentified Prototypes . | . . . Parts Lost 10 | . 5 5 Power 3 | . 1 2 Propulsion 3 | . 2 1 Utility 2 | . 1 1 Weapon 2 | . 1 1 Highest Loss Streak 5 | . 5 3 To Critical Strikes . | . . . Average Slot Usage (%) 92 | . 90 97 Engine 12 | . 13 11 Leg 17 | . 13 28 Wheel 6 | . 9 . Device 12 | . 11 14 Storage 14 | . 14 14 Energy Gun 10 | . 12 7 Ballistic Gun 14 | . 14 14 Slashing Weapon 1 | . . 6 Peak Build Rating 11 | 6 7 11 Average Rating 6 | 3 6 9 On Entrance 4 | . 6 7 Naked Turns . | . . . Heaviest Build 13 | 11 13 13 Greatest Support 32 | 20 32 25 Greatest Overweight (x) 3 | . 3 . Average Overweight (x) . | . . . Largest Inventory Capacity 8 | 8 8 8 Average Capacity 7 | 6 8 8 Most Carried 8 | 4 8 8 Average Carried 5 | 1 4 6 Final Capacity 8 | 8 8 8 Final Carried 8 | 2 8 6 Class Distribution -------------------- 100% | Mutant Dominant Class ---------------- Mutant | -10/Materials Mutant | -10/Mines Resources | -11 -10 -10 ----------- Run | Yrd Mat Min Matter Collected 503 | 186 195 122 Remotely . | . . . Salvage Created 693 | . 532 161 Parts 43 | . 34 9 Haulers Intercepted 1 | . 1 . Recyclers Shooed . | . . . Parts Field Recycled . | . . . Retrieved Matter . | . . . Parts Self-Destructed . | . . . Prevented . | . . . Kills | -11 -10 -10 ------- Run | Yrd Mat Min Combat Hostiles Destroyed 13 | . 8 5 Melee 3 | . . 3 Guns 9 | . 7 2 AOE 1 | . 1 . Classes Destroyed 7 | . 6 1 Worker 4 | . 4 . Builder 1 | . . 1 Hauler 1 | . 1 . Recycler 1 | . 1 . Watcher 2 | . 2 . Swarmer 6 | . 3 3 Grunt 7 | . 5 2 Best Kill Streak 3 | . 3 3 Combat Bots Only 3 | . 3 3 Max Kills in Single Turn 2 | . 2 1 Gunslinging . | . . . Exploded 1 | . 1 . Melee 1 | . . 1 Uniques/NPCs Destroyed . | . . . Combat | -11 -10 -10 -------- Run | Yrd Mat Min Hostile Shots Fired 126 | . 72 54 Missed 27 | . 18 9 Damage Taken 1127 | . 570 557 Core 267 | . 115 152 Absorbed by Shields . | . . . Ignored by Resistances 326 | . 167 159 Core Remaining (%) 100 | 100 . . Volleys Fired 63 | . 57 6 Largest 2 | . 2 2 Hottest 65 | . 60 65 Shots Fired 100 | . 89 11 Gun 100 | . 89 11 Cannon . | . . . Launcher . | . . . Special . | . . . Kinetic 62 | . 57 5 Thermal 1 | . . 1 Explosive . | . . . Electromagnetic 37 | . 32 5 Robot Hit Streak 40 | . 40 15 Robot Miss Streak 3 | . 3 1 Penetration Max . | . . . Secondary Targets 1 | . 1 . Max Gunslinging Chain 1 | . 1 . Shots Hit Robots 91 | . 73 18 Core Hits 36 | . 28 8 Critical Kills 1 | . 1 . Critical Parts Destroyed . | . . . Critical Strikes 4 | . 4 . Destroy 1 | . 1 . Corrupt 3 | . 3 . Melee Attacks 10 | . . 10 Impact . | . . . Slashing 10 | . . 10 Piercing . | . . . Sneak Attacks 1 | . . 1 Combat Hostiles . | . . . Follow-up Attacks . | . . . Damage Inflicted 1307 | . 906 401 Guns 949 | . 826 123 Cannons . | . . . Explosions 80 | . 80 . Melee 278 | . . 278 Ramming . | . . . Kinetic 516 | . 456 60 Thermal 23 | . 23 . Explosive 57 | . 57 . Electromagnetic 433 | . 370 63 Impact . | . . . Slashing 278 | . . 278 Piercing . | . . . Highest Corruption . | . . . Average Corruption . | . . . Corruption Purged . | . . . Corruption Blocked . | . . . Overload Shots . | . . . Overflow Damage 29 | . 3 26 Projectiles . | . . . Explosions 3 | . 3 . Melee 26 | . . 26 Knockbacks . | . . . Impact . | . . . Kinetic . | . . . Secondary . | . . . Self-Inflicted Damage 76 | . 76 . Shots 2 | . 2 . Rammed . | . . . Targets Rammed . | . . . Kicked . | . . . Crushed . | . . . Highest Temperature 70 | . 58 70 Average Temperature 22 | . 18 37 Received Heat Transfer 450 | . 375 75 Siege Activations . | . . . Robots Corrupted . | . . . Combat Hostiles . | . . . Parts Fried 1 | . 1 . Impact Corruptions . | . . . Robots Melted . | . . . Combat Hostiles . | . . . Parts Melted . | . . . Heat Transferred 50 | . 50 . Parts Sabotaged . | . . . Parts Stolen . | . . . Parts Stripped . | . . . Power Chain Reactions 1 | . 1 . Alert | -11 -10 -10 ------- Run | Yrd Mat Min Peak Influence 227 | . 227 150 Initial 30 | . . 30 Average 106 | . 116 105 Maximum Alert Level 1 | . 1 . Low Security (%) 97 | 100 96 100 Level 1 2 | . 4 . Level 2 . | . . . Level 3 . | . . . Level 4 . | . . . Level 5 . | . . . High Security . | . . . Max Security . | . . . Squads Dispatched . | . . . Investigation . | . . . Extermination . | . . . Reinforcement . | . . . Assault . | . . . Garrison . | . . . Intercept . | . . . Searches Triggered . | . . . Construction Impeded . | . . . Haulers Reinforced . | . . . Active Scanning Responses . | . . . Cargo Convoy Interrupts . | . . . Stealth | -11 -10 -10 --------- Run | Yrd Mat Min Distress Signals . | . . . Communications Jammed . | . . . Distress Signals . | . . . Times Spotted 30 | . 17 13 Peak Tracking Total 5 | . 5 4 Tactical Retreats 1 | . 1 . Traps | -11 -10 -10 ------- Run | Yrd Mat Min Traps Triggered 1 | . . 1 Indirectly . | . . . Trap Hack Attempts . | . . . Triggered . | . . . Disarmed . | . . . Reprogrammed . | . . . Reused . | . . . Traps Extracted . | . . . Installed . | . . . Triggered . | . . . Machines | -11 -10 -10 ---------- Run | Yrd Mat Min Machines Disabled 1 | . 1 . Max in Single Turn 1 | . 1 . Machines Repaired . | . . . Machines Dismantled . | . . . Machines Sabotaged . | . . . Overloaded Fab Kills . | . . . Hacking | -11 -10 -10 --------- Run | Yrd Mat Min Machines Accessed 5 | . 4 1 Terminals 4 | . 4 . Fabricators . | . . . Repair Stations . | . . . Recycling Units . | . . . Scanalyzers . | . . . Garrison Access . | . . . Total Hacks 11 | . 10 1 Successful 6 | . 5 1 Failed 5 | . 5 . Catastrophic . | . . . Database Lockouts . | . . . Manual . | . . . Terminals 10 | . 10 . Fabricators . | . . . Repair Stations . | . . . Recycling Units . | . . . Scanalyzers . | . . . Garrison Access . | . . . Terminal Hacks 6 | . 5 1 Prototype ID Bank 1 | . 1 . Open Door 1 | . . 1 Terminal Index 1 | . 1 . Registered Components 1 | . 1 . Registered Prototypes 1 | . 1 . Zone Layout 1 | . 1 . Fabricator Hacks . | . . . Repair Station Hacks . | . . . Recycling Unit Hacks . | . . . Scanalyzer . | . . . Garrison Access Hacks . | . . . Unauthorized Hacks . | . . . Terminals . | . . . Fabricators . | . . . Repair Stations . | . . . Recycling Units . | . . . Scanalyzers . | . . . Garrison Access . | . . . Data Cores Recovered . | . . . Used . | . . . Hacking Detections 1 | . 1 . Full Trace Events . | . . . Feedback Events . | . . . Feedback Blocked . | . . . Robot Schematics Acquired . | . . . Robots Built . | . . . Authchips . | . . . Time . | . . . Total Robot Build Rating . | . . . Part Schematics Acquired . | . . . Parts Built . | . . . Authchips . | . . . Time . | . . . Total Part Build Rating . | . . . Parts Repaired . | . . . Time . | . . . Parts Recycled . | . . . Recycled Matter . | . . . Retrieved Matter . | . . . Retrieved Components . | . . . Parts Scanalyzed . | . . . Part Schematics Acquired . | . . . Parts Damaged . | . . . Bothacking | -11 -10 -10 ------------ Run | Yrd Mat Min Used RIF Installer . | . . . Robots Hacked . | . . . Non-combat . | . . . Combat . | . . . Robot Hacks Applied . | . . . Relay Couplers Released . | . . . Fabnet Peak Effective % . | . . . Robots Rewired . | . . . Allies Hacked . | . . . Hacks Repelled . | . . . Allies | -11 -10 -10 -------- Run | Yrd Mat Min Total Allies . | . . . Largest Group . | . . . Highest-Rated Group . | . . . Highest-Rated Ally . | . . . Total Orders . | . . . Ally Attacks . | . . . Total Damage . | . . . Kills . | . . . Allies Corrupted . | . . . Allies Melted . | . . . Intel | -11 -10 -10 ------- Run | Yrd Mat Min Robot Analysis Total . | . . . Derelict Logs Recovered . | . . . Drone Launches . | . . . Drone Recoveries . | . . . Exploration | -11 -10 -10 ------------- Run | Yrd Mat Min Turns Passed 917 | 53 600 264 Spaces Moved 543 | 38 339 166 Core 50 | 8 42 . Treads . | . . . Legs 359 | 30 163 166 Wheels 134 | . 134 . Hover . | . . . Flight . | . . . Fastest Speed 50 | 50 100 120 Average Speed 119 | 105 120 120 Slowest Speed 200 | 120 200 120 Overloaded Moves . | . . . Propulsion Burnouts . | . . . Robots Hopped . | . . . Cave-ins Triggered . | . . . Exploration Rate (%) 33 | 4 67 28 Regions Visited 2 Branch Regions 1 Pre-discovered Areas . | . . . Known Exits Taken . | . . . Unknown Exits Taken 2 | 1 1 . Scrap Searched . | . . . Spaces Dug . | . . . Terrain Destroyed 20 | . 20 . Melee . | . . . Projectile . | . . . AOE 20 | . 20 . Terrain Rammed . | . . . Walls Destroyed . | . . . Machines Disabled . | . . . Actions | -11 -10 -10 --------- Run | Yrd Mat Min Total 706 | 51 448 207 Wait 30 | . 26 4 Move 541 | 37 338 166 Hop . | . . . Pick Up 30 | 8 15 7 Fast Attach . | . . . Attach 17 | 6 6 5 Detach . | . . . Swap 6 | . 3 3 Drop 9 | . 3 6 Fire 63 | . 57 6 Melee 10 | . . 10 Ram . | . . . Kick . | . . . Crush . | . . . Escape Stasis . | . . . Rewire . | . . . Trap . | . . . Miscellaneous . | . . . Route ------- -11/Scrapyard -10/Materials (discovered 3 exits: [*Mat x2] / *Min) -10/Mines (discovered 1 exit: [*Mat]) History --------- Turn | Location | Event 3 | -11/Scrapyard | Discovered new exit (range 15) 54 | -11/Scrapyard | Entered Materials 199 | -10/Materials | Lost 5 parts (1p2n1u1w) 238 | -10/Materials | Discovered new exit (range 18) 304 | -10/Materials | Build established: Mutant 491 | -10/Materials | Discovered new exit (range 14) 577 | -10/Materials | Discovered new exit (range 14) 654 | -10/Materials | Entered Mines 720 | -10/Mines | Discovered new exit (range 12) 745 | -10/Mines | Met a Derelict who couldn't figure out how to use a Trap Extractor 805 | -10/Mines | Core integrity fell below 50% 875 | -10/Mines | Assembled infested the area 908 | -10/Mines | Core integrity fell below 20% 918 | -10/Mines | Destroyed by D-53 Grenadier with Mini Grenade Launcher Last Messages --------------- U-05 Engineer builds a Wall. S-10 Pest destroyed. Lgt. Ion Engine destroyed. S-10 Pest destroyed. Acquired Flight Unit. Acquired 16 matter. Acquired Flight Unit. Acquired 9 matter. Acquired 2 matter. ALERT: Infestation in the mines, dispatching Demolisher response squad. T-07 Excavator is excavating. Sneak attack on U-05 Engineer. Destroyed Lgt. Ion Engine. U-05 Engineer destroyed. Acquired 8 matter. as-78763 destroyed. Structural Scanner destroyed. T-07 Excavator destroyed. Aluminum Leg destroyed. Lgt. Assault Rifle destroyed. Map ----- +----------------------------------------------------+ | ????????????##### ##????######## ##??? | | ????????????##### ##?????####### ###??? | | ????????????## ##??????????## ####??? | | ????????????## ##??????????#######???? | | ????????????## #####??????????######????? | | ????????????## #####????????????????????? | | ???????????### ###??????????????????????? | | ???????????### ###??????????????????????? | | ???????????## ##??????????????????????? | | ???????????## ##??????????????????????? | | ???????????## ##?####???? ??????????? | | ???????????## #########??? ???????????? | | ???????????## ##### ###??? ???????????? | | ???????????## ### ##?# ????????????? | | ???????????## ##? ????????????? | | ???????????### ###? #????????????? | | ???????????#### ####? ##???????????? | | ????????????#### ###?? ###?????????? | | ?????????????#### " ####?? ##????????? | | ??????????????### %"### ## #????????? | | ???????????????## ## # #????????? | | ???????????????## #?????????? | | ???????????????## d = #???????????? | | ?????????????#### d ##??????????? | | ?????????????## #??????????? | | ?????????????## *% @ #???????????? | | ????????? a % !%! #??????????? | | ?????????## ### =# ##??????????? | | ?????????## ### # #???????????? | | ??????????????## ##### # ##???????????? | | ???????????????## #???#####????????????? | | ????????????????# ?????????????????????? | | ?????????????????? ?????????????????????? | | ?????????????????? ?????????????????????? | | ?????????????????? ?????????????????????? | | ?????????????????? ?????????????????????? | | ????????????????? #????????????????????? | | ?????????????????####????????????????????? | | ????????????????? ###????????????????????? | | ?????????????????????????????????????????? | | ?????????????????????????????????????????? | | ?????????????????????????????????????????? | | ?????????????????????????????????????????? | | ?????????????????????????????????????????? | | ?????????????????????????????????????????? | | ?????????????????????????????????????????? | | ?????????????????????????????????????????? | | ?????????????????????????????????????????? | | | | | +----------------------------------------------------+ Best States ------------- Heat Dissipation 25 Energy Generation 10 Energy Capacity 125 Matter Stores 300 Matter Capacity 300 Sight Range 16 Terrain Scan Density 10 Resistance: KI 20 Resistance: TH 20 Resistance: EX 20 Resistance: EM 20 Resistance: I 20 Resistance: S 20 Resistance: P 20 Evasion (%) 55 Offensive Hacking 10 Item Schematics ----------------- None Robot Schematics ------------------ None Fabricated ------------ Nothing Alien Tech Used ----------------- None Achievements -------------- None Challenges ------------ None Game ------ Seed ImprinterMeleeCompactor Manual? 0 Play Time 00:13:50 Cumulative 10.4 hours Start 2025.03.21 @ 22:36:33 End 2025.03.21 @ 22:51:27 Sessions 1 Manual Loads 0 Difficulty Adventurer Special Mode None Game No. 12 Rogue 0 Adventurer 12 Explorer 0 Win Type - Total 0 Types 0/0/0/0/0/0/0/0/0 Lore% 9 Gallery% 18 Achievement% 18 Wizard Run 0 Options --------- Layout 0 ASCII 0 Keyboard 0 Movement Mouse Keybinds 0 Fullscreen 2 Font 24/Smallcaps Map View 76x50 Zoom Use 0% Tactical HUD 0 Map Filters NONE Filters NONE Steam 1 RUN: 66519937-249c-46d5-bf16-86c453c01054